fUSD/lending_fUSD_20251023
["ID","MTS","AMOUNT","RATE_DAILY","PERIOD"]
[392121942,1761177603355,-200.04390664,0.00033674,7]
[392121943,1761177603380,-133.32452879,0.00034987,2]
[392121944,1761177625436,1523.7,0.00018008,2]
[392121945,1761177634060,-202.9511,0.00024832,2]
[392121946,1761177634085,-47.23547121,0.00034987,2]
[392121947,1761177634108,-1.1276576,0.00035694,2]
[392121948,1761177639571,2000.0,0.00018008,10]
[392121949,1761177639684,-166.79321567,0.00035694,2]
[392121950,1761177649479,-13.13127926,0.00035694,2]
[392121951,1761177649503,-180.64451403,0.00035735,30]
[392121952,1761177653991,-173.65493448,0.00035735,30]
[392121953,1761177656310,-241.75670472,0.00035735,30]
[392121954,1761177689518,2000.0,0.00018008,60]
[392121955,1761177693403,-250.0,0.00035735,30]
[392121956,1761177701266,-264.72809752,0.00035735,30]
[392121957,1761177704025,-200.0,0.00035735,30]
[392121958,1761177711175,-162.58792679,0.00035735,30]
[392121959,1761177717371,-174.79029443,0.00035735,30]
[392121960,1761177721474,-273.00953807,0.00035735,30]
[392121961,1761177783494,-78.82798996,0.00035735,30]
[392121962,1761177783518,-101.60782828,0.00038486,120]
[392121963,1761177790579,-233.99785473,0.00038486,120]
[392121964,1761177798063,-208.49065822,0.00038486,120]
[392121965,1761177799699,-166.52519143,0.00038486,120]
[392121966,1761177805692,-211.44554323,0.00024932,2]
[392121967,1761177807247,-196.7704689,0.00024932,2]
[392121968,1761177860314,-91.78398787,0.00024932,2]
[392121969,1761177860336,-173.16266739,0.00038486,120]
[392121970,1761177860363,-56.7726676,0.00038699,2]
[392121971,1761177863034,-130.12054169,0.00038699,2]
[392121972,1761177863060,-54.23720155,0.00038724,90]
[392121973,1761177953129,-500.0,0.00038386,2]
[392121974,1761177953150,-98.76279845,0.00038724,90]
[392121975,1761177953172,-153.0,0.00038724,90]
[392121976,1761177953194,-153.0,0.00038724,90]
[392121977,1761177953216,-153.0,0.00038724,90]
[392121978,1761177953237,-151.0,0.00038777,2]
[392121979,1761177953260,-911.0,0.00038799,5]
[392121980,1761177953279,-150.0,0.00038799,4]
[392121981,1761177953299,-400.0,0.00038799,5]
[392121982,1761177953318,-124.72568212,0.00038799,5]
[392121983,1761178016182,-153.0,0.0003872,90]
[392121984,1761178016209,-221.40024198,0.00038799,5]
[392121986,1761178232286,-226.02260155,0.00038777,2]
[392121987,1761178232297,-174.4507919,0.000388,5]
[392121988,1761178232308,-94.52660655,0.000388,5]
[392121989,1761178232352,-405.47339345,0.000388,5]
[392121990,1761178232364,-433.284,0.000388,52]
[392121991,1761178232374,-500.0,0.000395,5]
[392121992,1761178232389,-220.0,0.00039656,5]
[392121993,1761178232398,-12452.54,0.00039657,2]
[392121994,1761178232408,-150.99,0.00039657,2]
[392121995,1761178232418,-5199.84153146,0.00039657,2]
[392121996,1761178232558,-331.44173745,0.00039657,2]
[392121998,1761178232570,-324.4224919,0.00039657,2]
[392122002,1761178238120,-4144.28423919,0.00039657,2]
[392122003,1761178238130,-150.99,0.00039657,30]
[392122004,1761178238139,-4684.43,0.00039657,2]
[392122005,1761178238149,-3770.01,0.00039657,2]
[392122006,1761178238158,-3647.85,0.00039657,2]
[392122007,1761178238168,-9999.99,0.00039829,2]
[392122008,1761178238177,-500.0,0.00039838,2]
[392122009,1761178238187,-500.0,0.00039838,5]
[392122010,1761178238196,-500.0,0.00039838,5]
[392122011,1761178238205,-500.0,0.00039838,5]
[392122012,1761178238214,-500.0,0.00039838,5]
[392122013,1761178238223,-500.0,0.00039838,5]
[392122014,1761178238232,-500.0,0.00039838,5]
[392122015,1761178238242,-501.59125938,0.00039838,5]
[392122016,1761178238251,-500.0,0.00039838,5]
[392122017,1761178238260,-220.98412807,0.00039999,7]
[392122018,1761178238269,-508.7729226,0.00039999,7]
[392122019,1761178238279,-500.0,0.00039999,31]
[392122020,1761178238289,-500.0,0.00039999,31]
[392122021,1761178238297,-500.0,0.00039999,31]
[392122022,1761178238307,-500.0,0.00039999,31]
[392122023,1761178238317,-500.0,0.00039999,31]
[392122024,1761178238333,-500.0,0.00039999,31]
[392122025,1761178238347,-500.0,0.00039999,31]
[392122026,1761178238359,-500.0,0.00039999,31]
[392122027,1761178238368,-500.0,0.00039999,31]
[392122028,1761178238379,-500.0,0.00039999,31]
[392122029,1761178238389,-500.0,0.00039999,31]
[392122030,1761178238398,-500.0,0.00039999,31]
[392122031,1761178238408,-500.0,0.00039999,31]
[392122032,1761178238419,-500.0,0.00039999,31]
[392122033,1761178238429,-500.0,0.00039999,31]
[392122034,1761178238438,-500.0,0.00039999,31]
[392122035,1761178238448,-500.0,0.00039999,31]
[392122036,1761178238458,-500.0,0.00039999,31]
[392122037,1761178238467,-500.0,0.00039999,31]
[392122038,1761178238477,-500.0,0.00039999,31]
[392122039,1761178238486,-500.0,0.00039999,31]
[392122040,1761178238495,-500.0,0.00039999,31]
[392122041,1761178238505,-471.24849078,0.00039999,31]
[392122042,1761178238514,-500.0,0.00039999,31]
[392122043,1761178238523,-236.6,0.00039999,7]
[392122044,1761178238533,-20000.0,0.0004,20]
[392122046,1761178238543,-1000.0,0.00040385,5]
[392122047,1761178238552,-1002.74837759,0.00040385,5]
[392122048,1761178238561,-150.0,0.00040488,4]
[392122049,1761178238570,-150.0,0.00040488,4]
[392122050,1761178238580,-150.0,0.00040488,4]
[392122051,1761178238590,-150.0,0.00040488,4]
[392122052,1761178238599,-150.0,0.00040488,4]
[392122053,1761178238609,-157.02041754,0.00040488,4]
[392122054,1761178238619,-152.10631874,0.00040488,4]
[392122055,1761178238628,-150.00000001,0.00040488,4]
[392122056,1761178238638,-150.0,0.00040488,4]
[392122057,1761178238648,-150.0,0.00040488,4]
[392122058,1761178238660,-679.93875466,0.00042107,30]
[392122059,1761178238670,-500.0,0.00042513,7]
[392122060,1761178238679,-1033.37194307,0.00042654,120]
[392122061,1761178238690,-253.45231176,0.00042654,120]
[392122062,1761178238699,-160.94,0.00042824,2]
[392122063,1761178238709,-166.72,0.00042863,2]
[392122064,1761178238718,-750.0,0.00043192,120]
[392122065,1761178238728,-1200.82,0.0004337,30]
[392122066,1761178238738,-168.0,0.00043517,120]
[392122067,1761178238747,-782.0,0.0004365,30]
[392122068,1761178238757,-250.0,0.00043734,120]
[392122069,1761178238766,-200.0,0.00043905,2]
[392122070,1761178238776,-176.428,0.00043985,2]
[392122071,1761178238786,-2533.10704145,0.00044,7]
[392122072,1761178238800,-8255.37295855,0.00044,7]
[392122073,1761178238810,-10788.48,0.00044,7]
[392122074,1761178238819,-2006.14698493,0.00044,7]
[392122075,1761178238834,-350.43935455,0.00044,7]
[392122076,1761178238846,-1700.76260798,0.00044,7]
[392122077,1761178238859,-2138.78941337,0.00044,7]
[392122078,1761178238870,-2011.24663029,0.00044,7]
[392122079,1761178240757,-1.6e-07,0.00044,7]
[392122080,1761178240769,-441.92105036,0.00044,7]
[392122081,1761178240780,-2139.17395836,0.00044,7]
[392122083,1761178240789,-8848.81076222,0.00044,7]
[392122106,1761178244961,-734.04574579,0.00044,7]
[392122107,1761178244973,-307.79937745,0.00044,7]
[392122108,1761178244985,-897.82411454,0.00044,7]
[392122109,1761178244995,-638.81,0.00044,7]
[392122110,1761178245004,-750.0,0.0004404,7]
[392122111,1761178245014,-713.78403075,0.00044092,15]
[392122112,1761178245023,-299.58185471,0.000441,30]
[392122113,1761178245036,-482.41814529,0.000441,30]
[392122114,1761178245045,-713.78403066,0.00044182,15]
[392122115,1761178245055,-713.78403066,0.00044272,15]
[392122116,1761178245064,-1200.82,0.00044356,30]
[392122117,1761178245074,-1200.82,0.00044356,30]
[392122118,1761178245083,-713.78403066,0.00044361,15]
[392122119,1761178245093,-6536.0,0.00044364,2]
[392122120,1761178245103,-557.0,0.00044364,2]
[392122121,1761178245113,-2592.0,0.00044364,2]
[392122122,1761178245126,-713.78403066,0.00044451,15]
[392122123,1761178245136,-166.72,0.0004447,2]
[392122124,1761178245147,-713.78403066,0.00044541,15]
[392122125,1761178245156,-782.0,0.0004455,30]
[392122126,1761178245166,-393.08117,0.0004455,23]
[392122127,1761178245175,-713.78403066,0.00044631,15]
[392122128,1761178245185,-393.08117,0.0004471,24]
[392122129,1761178245193,-713.78403066,0.0004472,15]
[392122130,1761178245203,-319.85657871,0.000448,30]
[392122131,1761178245213,-713.78403066,0.0004481,15]
[392122132,1761178245223,-150.0,0.00044886,2]
[392122133,1761178245234,-2500.0,0.0004489,2]
[392122134,1761178245244,-258.72768979,0.00044895,15]
[392122135,1761178245253,-258.72768971,0.00044896,15]
[392122136,1761178245263,-258.72768971,0.00044896,15]
[392122137,1761178245274,-258.72768971,0.00044897,15]
[392122138,1761178245285,-258.72768971,0.00044897,15]
[392122139,1761178245295,-258.72768971,0.00044898,15]
[392122140,1761178245305,-258.72768971,0.00044898,15]
[392122141,1761178245315,-258.72768971,0.00044899,15]
[392122142,1761178245324,-258.72768971,0.00044899,15]
[392122143,1761178245334,-514.59948325,0.000449,2]
[392122144,1761178245349,-485.40051675,0.000449,2]
[392122145,1761178245358,-424.07159074,0.000449,120]
[392122146,1761178245370,-263.90840926,0.000449,120]
[392122147,1761178245380,-9677.649164,0.000449,120]
[392122148,1761178245390,-713.78403066,0.000449,15]
[392122149,1761178245401,-258.72768971,0.000449,15]
[392122150,1761178245410,-227.98963598,0.000449,120]
[392122151,1761178245420,-1817.5137134,0.000449,17]
[392122152,1761178245430,-517.47735806,0.000449,2]
[392122153,1761178245439,-284.11434608,0.000449,2]
[392122154,1761178245450,-164.24198384,0.000449,2]
[392122155,1761178245461,-227.98963596,0.0004492,120]
[392122156,1761178245473,-227.98963596,0.0004494,120]
[392122157,1761178245482,-2219.2975727,0.00044957,2]
[392122158,1761178245491,-393.08117,0.0004496,25]
[392122159,1761178245501,-700.0,0.0004497,3]
[392122160,1761178245511,-500.0,0.00044973,10]
[392122161,1761178245520,-151.0,0.00044984,120]
[392122162,1761178245529,-150.0,0.00044986,30]
[392122163,1761178245538,-19737.874683,0.00044987,2]
[392122164,1761178245547,-4881.2003167,0.00044987,2]
[392122165,1761178245556,-193.0,0.00044987,60]
[392122166,1761178245565,-150.0,0.00044987,60]
[392122167,1761178245580,-500.0,0.00044987,60]
[392122168,1761178245589,-150.0,0.00044987,60]
[392122169,1761178245599,-500.0,0.00044989,120]
[392122170,1761178245608,-500.0,0.00044989,2]
[392122171,1761178245618,-232.07,0.0004499,30]
[392122172,1761178245627,-8496.99840962,0.0004499,3]
[392122173,1761178245636,-158.74264451,0.0004499,7]
[392122174,1761178245646,-3103.5498889,0.00044995,2]
[392122175,1761178245655,-151.0,0.00044997,120]
[392122176,1761178245663,-457.73661677,0.00044998,120]
[392122177,1761178245673,-500.0,0.00044999,120]
[392122178,1761178245682,-500.0,0.00044999,120]
[392122179,1761178245691,-500.0,0.00044999,120]
[392122180,1761178245700,-500.0,0.00044999,120]
[392122181,1761178245709,-327.17702758,0.00044999,120]
[392122182,1761178245719,-317.17841379,0.00044999,120]
[392122183,1761178245728,-500.0,0.00044999,120]
[392122184,1761178245737,-500.0,0.00044999,120]
[392122185,1761178245747,-500.0,0.00044999,120]
[392122186,1761178245756,-500.0,0.00044999,120]
[392122187,1761178245765,-250.0,0.00044999,120]
[392122188,1761178245774,-250.0,0.00044999,120]
[392122189,1761178245784,-250.0,0.00044999,120]
[392122190,1761178245794,-250.0,0.00044999,120]
[392122191,1761178245803,-500.0,0.00044999,120]
[392122192,1761178245812,-500.0,0.00044999,120]
[392122193,1761178245822,-250.0,0.00044999,120]
[392122194,1761178245832,-500.0,0.00044999,120]
[392122195,1761178245841,-500.0,0.00044999,120]
[392122196,1761178245850,-500.0,0.00044999,120]
[392122197,1761178245859,-500.0,0.00044999,120]
[392122198,1761178245868,-500.0,0.00044999,120]
[392122199,1761178245878,-500.0,0.00044999,120]
[392122200,1761178245887,-500.0,0.00044999,120]
[392122201,1761178245896,-500.0,0.00044999,120]
[392122202,1761178245906,-500.0,0.00044999,120]
[392122203,1761178245916,-500.0,0.00044999,120]
[392122204,1761178245925,-500.0,0.00044999,120]
[392122205,1761178245934,-500.0,0.00044999,120]
[392122206,1761178245944,-500.0,0.00044999,120]
[392122207,1761178245953,-500.0,0.00044999,120]
[392122208,1761178245963,-500.0,0.00044999,120]
[392122209,1761178245973,-500.0,0.00044999,120]
[392122210,1761178245984,-500.0,0.00044999,120]
[392122211,1761178245995,-500.0,0.00044999,120]
[392122212,1761178246005,-500.0,0.00044999,120]
[392122213,1761178246015,-1631.39223425,0.00045,18]
[392122214,1761178246026,-365518.80634953,0.00045,120]
[392122215,1761178246036,-394.0,0.00045,3]
[392122216,1761178246047,-192.08187155,0.00045,120]
[392122217,1761178246057,-6010.0,0.00045,10]
[392122218,1761178246067,-634.35803386,0.00045,120]
[392122219,1761178246078,-30379.38488909,0.00045,2]
[392122220,1761178246088,-1617.14924885,0.00045,120]
[392122221,1761178246099,-465.70532106,0.00045,120]
[392122222,1761178246109,-1402.7597901,0.00045,120]
[392122223,1761178246118,-129719.0,0.00045,120]
[392122224,1761178246128,-259.46150222,0.00045,120]
[392122225,1761178246137,-200000.0,0.00045,120]
[392122226,1761178246146,-36843.03,0.00045,14]
[392122227,1761178246155,-376700.93543517,0.00045,120]
[392122228,1761178246391,-310.49872019,0.00045,120]
[392122229,1761178246493,-1759.72105154,0.00045,120]
[392122230,1761178246505,-357.16136,0.00045,120]
[392122231,1761178246575,-6182.10233035,0.00045,120]
[392122232,1761178246587,-686.69924265,0.00045,120]
[392122233,1761178246599,-354.70923108,0.00045,120]
[392122234,1761178246655,-666.0,0.00045,120]
[392122254,1761178511642,-167.01265877,0.00024932,2]
[392122255,1761178511775,-309.46706161,0.00024932,2]
[392122256,1761178511856,-23.52027962,0.00024932,2]
[392122257,1761179010489,-290.48725263,0.00024932,2]
[392122258,1761179014645,-195.0,0.00024932,2]
[392122259,1761179114914,-153.52,0.0002138,2]
[392122260,1761179114937,-14.51274737,0.00024932,2]
[392122261,1761179114962,-131.96725263,0.00024943,2]
[392122262,1761179118135,-21.55274737,0.00024943,2]
[392122263,1761179118159,-212.29673092,0.00027425,2]
[392122264,1761179145031,-369.19885163,0.0002,2]
[392122265,1761179149460,-208.60780155,0.0001995,15]
[392122266,1761179151861,-173.12338281,0.0001995,15]
[392122267,1761179158078,-232.67431415,0.0001995,15]
[392122268,1761179162448,-250.0,0.0001995,15]
[392122269,1761179165839,-195.0,0.0001995,15]
[392122270,1761179167601,-60.68898039,0.0001995,15]
[392122271,1761179167623,-131.49324228,0.0002,2]
[392122272,1761179173145,-107.51068901,0.0002,2]
[392122273,1761179173168,-298.34389458,0.00025,2]
[392122274,1761179174929,-105.74102139,0.00025,2]
[392122275,1761179174951,-37.70326908,0.00027425,2]
[392122276,1761179174972,-98.18867171,0.00028,2]
[392122278,1761179213316,219.33,0.00013699,2]
[392122279,1761179217646,6609.65,0.000162,5]
[392122282,1761179218455,-192.52783091,0.00020187,2]
[392122283,1761179230131,-26.80216909,0.00020187,2]
[392122284,1761179230154,-151.87794743,0.0002465,2]
[392122285,1761179233127,-56.99451774,0.0002465,2]
[392122286,1761179233149,-219.33,0.00026676,2]
[392122287,1761179233171,-2753.72127649,0.00028,2]
[392122288,1761179235084,-11097.12457453,0.00028,2]
[392122291,1761179309989,-218.14686436,0.00025,3]
[392122292,1761179351091,-53.80796651,0.00025,3]
[392122293,1761179351111,-1050.70397204,0.00028,2]
[392122294,1761179351130,-162.4,0.00028,2]
[392122295,1761179351151,-153.52,0.00028506,2]
[392122296,1761179351172,-901.2165714,0.00029,5]
[392122297,1761179351192,-153.52,0.00032069,2]
[392122298,1761179351211,-219.33,0.00033165,2]
[392122299,1761179351231,-153.52,0.00035633,2]
[392122300,1761179351251,-2013.4054416,0.000379,2]
[392122301,1761179351270,-838.0,0.00037998,2]
[392122302,1761179351290,-500.0,0.00037999,15]
[392122303,1761179351313,-500.0,0.00037999,15]
[392122304,1761179351334,-500.0,0.00037999,15]
[392122305,1761179351356,-500.0,0.00037999,15]
[392122306,1761179351376,-500.0,0.00037999,15]
[392122307,1761179351397,-500.0,0.00037999,15]
[392122308,1761179351416,-294.24969816,0.00037999,15]
[392122309,1761179351435,-25358.14875029,0.00038,19]
[392122310,1761179384263,10000.0,0.000175,2]
[392122328,1761179432335,-151.0,0.00037997,14]
[392122329,1761179432345,-652.0,0.00037999,3]
[392122330,1761179432355,-697.84596351,0.00038,19]
[392122331,1761179432389,-72929.53024508,0.00038,19]
[392122332,1761179432401,-52206.11525823,0.00038,19]
[392122333,1761179432446,-436.60011272,0.00038,19]
[392122334,1761179432458,-339.66691684,0.00038,19]
[392122335,1761179432500,-1807.01762166,0.00038,19]
[392122336,1761179432512,-1028.92855401,0.00038,19]
[392122337,1761179432525,-434.57723662,0.00038,19]
[392122338,1761179432556,-450.0,0.00038,19]
[392122339,1761179432568,-357.30360357,0.00038,19]
[392122349,1761179438357,-761.36053784,0.00038,19]
[392122350,1761179438369,-636.88586202,0.00038,19]
[392122351,1761179438380,-2112.08527117,0.00038,19]
[392122352,1761179438391,-20443.93406644,0.00038,19]
[392122353,1761179438401,-2730.72,0.00038,2]
[392122354,1761179438410,-9999.99,0.00038,2]
[392122355,1761179438419,-1139.23,0.00038,2]
[392122356,1761179438429,-150.99,0.00038,2]
[392122357,1761179438438,-181.67333046,0.00038,2]
[392122358,1761179438447,-150.0,0.00038,2]
[392122359,1761179438456,-150.99,0.000384,30]
[392122360,1761179438466,-299.99,0.000384,30]
[392122361,1761179438475,-3946.48,0.000384,2]
[392122362,1761179438485,-171.02469528,0.000385,5]
[392122363,1761179438494,-500.0,0.000385,5]
[392122364,1761179438504,-2013.40544152,0.00038678,2]
[392122365,1761179438514,-153.0,0.00038951,90]
[392122366,1761179438524,-153.0,0.00038951,90]
[392122367,1761179438533,-200.56249355,0.00038954,2]
[392122368,1761179438542,-153.0,0.00038954,90]
[392122369,1761179438551,-153.0,0.00038954,90]
[392122370,1761179438561,-153.0,0.00038954,90]
[392122371,1761179438570,-153.0,0.00038954,90]
[392122372,1761179438579,-153.0,0.00038954,90]
[392122373,1761179438588,-153.0,0.00038954,90]
[392122374,1761179438598,-500.952163,0.00039,5]
[392122375,1761179438607,-200.56249355,0.00039,2]
[392122376,1761179438616,-452.94678411,0.00039,5]
[392122377,1761179438625,-715.79272862,0.00039,2]
[392122378,1761179438633,-153.52,0.00039196,2]
[392122379,1761179438642,-500.0,0.00039225,5]
[392122380,1761179438652,-500.0,0.00039225,2]
[392122381,1761179438662,-2013.40544152,0.00039456,2]
[392122382,1761179438671,-219.33,0.00039654,2]
[392122383,1761179438680,-5345.50560004,0.00039818,2]
[392122384,1761179438690,-315.73041,0.0004,5]
[392122385,1761179438699,-2013.40544152,0.00040233,15]
[392122386,1761179438708,-161.83329339,0.00040282,2]
[392122387,1761179438718,-187.6,0.00040354,2]
[392122388,1761179438728,-540.84836925,0.00040898,2]
[392122389,1761179438743,-805.0,0.00040898,2]
[392122390,1761179438754,-4459.38263858,0.00040898,2]
[392122391,1761179438768,-749.74194093,0.00040898,2]
[392122408,1761179440462,-8175.36705124,0.00040898,2]
[392122409,1761179440472,-2013.40544152,0.00041011,15]
[392122410,1761179440481,-150.0,0.00041264,2]
[392122411,1761179440491,-166.66,0.000416,30]
[392122412,1761179440502,-2013.40544152,0.00041789,15]
[392122413,1761179440513,-200.56249355,0.00042155,2]
[392122414,1761179440523,-236.99587487,0.00042179,2]
[392122415,1761179440532,-166.66,0.00042476,30]
[392122416,1761179440542,-2013.40544152,0.00042567,15]
[392122417,1761179440551,-202.19,0.00042626,30]
[392122418,1761179440563,-153.52,0.00042759,2]
[392122419,1761179440574,-518.41,0.00042919,2]
[392122420,1761179440585,-198.47920095,0.00042939,31]
[392122421,1761179440596,-560.26828366,0.00042939,31]
[392122422,1761179440607,-175.34118696,0.00042939,31]
[392122423,1761179440616,-5000.0,0.0004294,120]
[392122424,1761179440626,-532.0,0.00043,90]
[392122425,1761179440635,-532.0,0.00043014,90]
[392122426,1761179440645,-227.43,0.00043094,120]
[392122427,1761179440655,-666.0,0.00043094,20]
[392122428,1761179440665,-1226.65,0.00043094,120]
[392122429,1761179440676,-2013.40544152,0.00043344,15]
[392122430,1761179440686,-166.66,0.00043352,30]
[392122431,1761179440697,-200.0,0.00043386,2]
[392122432,1761179440709,-322.65995845,0.00043638,2]
[392122433,1761179440718,-151.0,0.00043767,2]
[392122434,1761179440728,-151.0,0.00043767,2]
[392122435,1761179440737,-151.0,0.00043767,2]
[392122436,1761179440746,-151.0,0.00043767,2]
[392122437,1761179440755,-168.0,0.00043769,2]
[392122438,1761179440764,-187.6,0.00043779,120]
[392122439,1761179440773,-346.628,0.00043792,68]
[392122440,1761179440782,-500.0,0.00043792,120]
[392122441,1761179440791,-168.0,0.00043793,2]
[392122442,1761179440800,-168.0,0.00043979,7]
[392122443,1761179440810,-168.0,0.00043998,2]
[392122444,1761179440820,-300.0,0.00043999,30]
[392122445,1761179440830,-500.0,0.00043999,120]
[392122446,1761179440840,-467.0090855,0.00043999,120]
[392122447,1761179440849,-815.6961172,0.00044,18]
[392122448,1761179440858,-500.0,0.00044,120]
[392122449,1761179441009,-25210.69073009,0.00044,2]
[392122450,1761179441025,-841.0,0.00044,2]
[392122451,1761179441039,-662770.91920174,0.00044,2]
[392122452,1761179441050,-3430.27801453,0.00044,2]
[392122453,1761179441061,-2148.6,0.00044,2]
[392122465,1761179443788,-15301.33228691,0.00044,2]
[392122466,1761179550236,-192.31659931,0.00031455,7]
[392122467,1761179580066,-307.68340069,0.00031455,7]
[392122468,1761179580086,-76.28197325,0.00031455,2]
[392122469,1761179610018,-239.18371767,0.00024932,2]
[392122470,1761179614195,-260.81628233,0.00024932,2]
[392122471,1761179614216,-84.92602008,0.00031455,2]
[392122472,1761179640027,-31.31983759,0.00031455,2]
[392122473,1761179640048,-218.44271504,0.00034501,2]
[392122474,1761179640069,-58.65413496,0.00034601,120]
[392122475,1761179644641,-215.4245165,0.00034601,120]
[392122476,1761179647726,-25.92134854,0.00034601,120]
[392122477,1761179647748,-344.61695497,0.00034601,120]
[392122478,1761179652689,-170.80401733,0.00034601,120]
[392122479,1761179761702,-232.79403683,0.00034601,120]
[392122480,1761179764825,-348.50575737,0.00034601,120]
[392122489,1761179895152,-300.0,0.00030183,7]
[392122490,1761179898062,-300.0,0.00030183,7]
[392122491,1761179900224,-77.76250497,0.00030183,7]
[392122492,1761179900244,-95.66925594,0.00030267,7]
[392122493,1761179902101,-192.56823909,0.00030267,7]
[392122494,1761179904736,-188.72440383,0.00030267,7]
[392122496,1761179970095,-23.03810114,0.00030267,7]
[392122497,1761179970118,-183.20194123,0.00031472,7]
[392122500,1761180149976,-432.66537671,0.0003021,7]
[392122501,1761180180004,-67.33462329,0.0003021,7]
[392122502,1761180180029,-180.56156518,0.00031584,120]
[392122503,1761180184912,-584.281061,0.00031584,120]
[392122504,1761180347129,-151.19968985,0.00031584,120]
[392122505,1761180425086,-166.47344729,0.00031484,2]
[392122506,1761180425107,-136.53685119,0.00031511,120]
[392122507,1761180432122,-230.66911198,0.00031511,120]
[392122508,1761180432143,-331.17335219,0.00031511,120]
[392122509,1761180432165,-383.52746835,0.00031511,2]
[392122510,1761180432187,-306.17920144,0.00031537,120]
[392122511,1761180439086,-162.02,0.0003,20]
[392122512,1761180439107,-142.96217023,0.00031537,120]
[392122513,1761180439126,-161.0,0.0003159,20]
[392122514,1761180439146,-161.0,0.0003159,30]
[392122515,1761180439167,-161.0,0.0003159,15]
[392122516,1761180439186,-152.93917164,0.0003232,2]
[392122517,1761180439208,-202.14,0.0003242,30]
[392122518,1761180439227,-1186.60434901,0.00033127,2]
[392122521,1761180547087,-476.13251256,0.00033113,2]
[392122522,1761180547116,-1600.0,0.00034617,3]
[392122523,1761180547136,-1805.19,0.00034617,2]
[392122524,1761180547159,-300.0,0.00034618,3]
[392122525,1761180547179,-1600.0,0.00034631,3]
[392122526,1761180547198,-400.0,0.00034631,3]
[392122527,1761180547392,-300.0,0.00034632,120]
[392122528,1761180547413,-1372.38187963,0.00034632,120]
[392122529,1761180547432,-300.0,0.00034632,120]
[392122530,1761180547452,-2500.0,0.00034632,120]
[392122531,1761180547476,-250.0,0.00034632,2]
[392122532,1761180547496,-5119.71308781,0.00034632,2]
[392122533,1761180556121,-179.68,0.00033127,30]
[392122534,1761180556142,-241.3604657,0.00034632,2]
[392122535,1761180558094,-4638.91644649,0.00034632,2]
[392122536,1761180558115,-179.68,0.00034658,30]
[392122537,1761180558135,-150.0,0.00034742,2]
[392122538,1761180558154,-348.50575737,0.00034743,120]
[392122539,1761180558176,-8534.21,0.00034743,2]
[392122540,1761180558200,-150.99,0.00034743,2]
[392122541,1761180558223,-161.0,0.000348,120]
[392122542,1761180558244,-161.0,0.000348,90]
[392122543,1761180558265,-161.0,0.000348,60]
[392122544,1761180558285,-37475.69429614,0.00035,2]
[392122545,1761180567062,-2985.3811493,0.00035,2]
[392122559,1761180631505,-172.3,0.00033019,2]
[392122560,1761180631515,-1157.69559808,0.00035,2]
[392122561,1761180631555,-123665.49220388,0.00035,2]
[392122562,1761180631715,-5000.00113981,0.00035,2]
[392122563,1761180631768,-330.99,0.00035,2]
[392122593,1761180637410,-55462.08784031,0.00035,2]
[392122595,1761180637422,-22430.28005121,0.00035,2]
[392122599,1761180639495,-762.17936017,0.00035,2]
[392122600,1761180639508,-3843.68367676,0.00035,2]
[392122601,1761180639519,-1618.7099998,0.00035,2]
[392122604,1761180640004,-1.6e-07,0.00035,2]
[392122608,1761180642939,-18.8148631,0.00035,2]
[392122609,1761180642986,-1273.43969311,0.00035,2]
[392122684,1761180735923,500.0,0.00029842,7]
[392122685,1761180736329,500.0,0.00029923,7]